[Event "Live Chess"]
[Site "Chess.com"]
[Date "2023.05.20"]
[Round "-"]
[White "VIDYUTGANESH"]
[Black "SavagePawn7"]
[Result "1-0"]
[WhiteElo "1673"]
[BlackElo "792"]
[TimeControl "300"]
[EndTime "9:17:22 PDT"]
[Termination "VIDYUTGANESH won by resignation"]

1. e3 {[%clk 0:04:58.6]} 1... d5 {[%clk 0:04:56.4]} 2. Ne2 {[%clk 0:04:58.5]}
2... e5 {[%clk 0:04:54.6]} 3. g3 {[%clk 0:04:58.4]} 3... Nf6 {[%clk 0:04:52.8]}
4. Bg2 {[%clk 0:04:58.3]} 4... Nc6 {[%clk 0:04:50.5]} 5. O-O {[%clk 0:04:58.2]}
5... Be6 {[%clk 0:04:48]} 6. f4 {[%clk 0:04:58.1]} 6... e4 {[%clk 0:04:44.7]} 7.
d4 {[%clk 0:04:58]} 7... Bd6 {[%clk 0:04:42.4]} 8. f5 {[%clk 0:04:56.5]} 8...
Bd7 {[%clk 0:04:37.2]} 9. Nbc3 {[%clk 0:04:54.1]} 9... O-O {[%clk 0:04:31.9]}
10. Nf4 {[%clk 0:04:53.6]} 10... Bxf4 {[%clk 0:04:29.4]} 11. Rxf4 {[%clk
0:04:51.9]} 11... Nh5 {[%clk 0:04:26.4]} 12. Qxh5 {[%clk 0:04:49.8]} 12... g6
{[%clk 0:04:23.3]} 13. Qh6 {[%clk 0:04:38.7]} 13... Bxf5 {[%clk 0:04:14.7]} 14.
Rh4 {[%clk 0:04:36.9]} 14... g5 {[%clk 0:03:50.8]} 15. Rh5 {[%clk 0:04:35.3]}
15... Bg6 {[%clk 0:03:44.5]} 16. Rxg5 {[%clk 0:04:33.2]} 16... f6 {[%clk
0:03:08.4]} 17. Rxg6+ {[%clk 0:04:29.2]} 17... hxg6 {[%clk 0:03:02.8]} 18. Qxg6+
{[%clk 0:04:29.1]} 18... Kh8 {[%clk 0:02:57.3]} 19. Qh5+ {[%clk 0:04:28.1]}
19... Kg8 {[%clk 0:02:51.9]} 20. Nxd5 {[%clk 0:04:27.6]} 20... Kg7 {[%clk
0:02:30.1]} 21. Bxe4 {[%clk 0:04:25.6]} 21... Rh8 {[%clk 0:02:27.8]} 22. Qg6+
{[%clk 0:04:23.3]} 22... Kf8 {[%clk 0:02:17.7]} 23. Nxf6 {[%clk 0:04:14]} 23...
Ne7 {[%clk 0:02:05.1]} 24. Nh7+ {[%clk 0:04:09.9]} 24... Rxh7 {[%clk 0:01:52.1]}
25. Qxh7 {[%clk 0:04:09.8]} 25... Nc6 {[%clk 0:01:46.1]} 26. Bd2 {[%clk
0:03:46.7]} 26... Qf6 {[%clk 0:01:35.7]} 27. Rf1 {[%clk 0:03:43.8]} 1-0

[Event "Live Chess"]
[Site "Chess.com"]
[Date "2023.05.20"]
[Round "-"]
[White "LiamBellwood"]
[Black "minenko-1958"]
[Result "1-0"]
[WhiteElo "2115"]
[BlackElo "1446"]
[TimeControl "300"]
[EndTime "9:17:23 PDT"]
[Termination "LiamBellwood won by resignation"]

1. d4 {[%clk 0:04:59.5]} 1... d5 {[%clk 0:04:58.2]} 2. Nc3 {[%clk 0:04:59.2]}
2... c6 {[%clk 0:04:56.4]} 3. Bf4 {[%clk 0:04:58.7]} 3... Bf5 {[%clk 0:04:54.2]}
4. e3 {[%clk 0:04:58.2]} 4... e6 {[%clk 0:04:52.7]} 5. f3 {[%clk 0:04:57.7]}
5... Bd6 {[%clk 0:04:51.2]} 6. Nge2 {[%clk 0:04:54.2]} 6... Bxf4 {[%clk
0:04:49.7]} 7. Nxf4 {[%clk 0:04:54.1]} 7... h6 {[%clk 0:04:47.8]} 8. Bd3 {[%clk
0:04:53.3]} 8... Bxd3 {[%clk 0:04:46.3]} 9. Qxd3 {[%clk 0:04:53.2]} 9... Nf6
{[%clk 0:04:44.9]} 10. O-O-O {[%clk 0:04:51.7]} 10... Nbd7 {[%clk 0:04:43.6]}
11. g4 {[%clk 0:04:49.3]} 11... Nb6 {[%clk 0:04:41.7]} 12. h4 {[%clk 0:04:47.8]}
12... Qd6 {[%clk 0:04:37.7]} 13. g5 {[%clk 0:04:46.7]} 13... hxg5 {[%clk
0:04:35.6]} 14. hxg5 {[%clk 0:04:46.6]} 14... Rxh1 {[%clk 0:04:33.7]} 15. Rxh1
{[%clk 0:04:46.5]} 15... Ng8 {[%clk 0:04:29.3]} 16. Rh8 {[%clk 0:04:45.5]} 16...
Qf8 {[%clk 0:04:27.5]} 17. Qh7 {[%clk 0:04:43.4]} 17... Ke7 {[%clk 0:04:25.1]}
18. g6 {[%clk 0:04:41.3]} 18... f6 {[%clk 0:04:19.3]} 19. Nh5 {[%clk 0:04:30.5]}
19... Nd7 {[%clk 0:04:08.5]} 20. Nxg7 {[%clk 0:04:27.6]} 20... Kd6 {[%clk
0:04:06.9]} 21. Nh5 {[%clk 0:04:22.1]} 21... f5 {[%clk 0:03:57.3]} 22. g7 {[%clk
0:04:20.1]} 22... Qf7 {[%clk 0:03:54.9]} 23. Nf4 {[%clk 0:04:13]} 23... Ndf6
{[%clk 0:03:49.7]} 24. Qh2 {[%clk 0:04:07.3]} 24... Qxg7 {[%clk 0:03:48.3]} 25.
Nh5+ {[%clk 0:04:05.6]} 1-0

[Event "Live Chess"]
[Site "Chess.com"]
[Date "2023.05.20"]
[Round "-"]
[White "domrobson"]
[Black "tomdot"]
[Result "1-0"]
[WhiteElo "1728"]
[BlackElo "228"]
[TimeControl "300"]
[EndTime "9:17:27 PDT"]
[Termination "domrobson won by resignation"]

1. d4 {[%clk 0:04:58.8]} 1... d5 {[%clk 0:04:56.6]} 2. c4 {[%clk 0:04:58.4]}
2... Nf6 {[%clk 0:04:49.1]} 3. Nf3 {[%clk 0:04:53.5]} 3... Nc6 {[%clk 0:04:47]}
4. Nc3 {[%clk 0:04:49.6]} 4... Bg4 {[%clk 0:04:43.9]} 5. Ne5 {[%clk 0:04:45.5]}
5... Nxd4 {[%clk 0:04:25.3]} 6. Qxd4 {[%clk 0:04:40.2]} 6... Bf5 {[%clk
0:04:13.7]} 7. cxd5 {[%clk 0:04:33.2]} 7... e6 {[%clk 0:04:12.5]} 8. e4 {[%clk
0:04:27.3]} 8... Be7 {[%clk 0:04:03.8]} 9. exf5 {[%clk 0:04:24.7]} 9... c5
{[%clk 0:03:56.9]} 10. Qa4+ {[%clk 0:04:18.8]} 10... b5 {[%clk 0:03:52.3]} 11.
Bxb5+ {[%clk 0:04:15]} 11... Kf8 {[%clk 0:03:44]} 12. fxe6 {[%clk 0:04:10.1]}
12... fxe6 {[%clk 0:03:42]} 13. dxe6 {[%clk 0:04:07.4]} 13... h6 {[%clk
0:03:19.4]} 14. Nf7 {[%clk 0:04:05.9]} 14... Rg8 {[%clk 0:03:09.2]} 15. Nxd8
{[%clk 0:04:04.3]} 15... Rxd8 {[%clk 0:03:00.1]} 16. O-O {[%clk 0:04:01]} 16...
Nd7 {[%clk 0:02:48]} 17. exd7 {[%clk 0:03:55.7]} 17... Rxd7 {[%clk 0:02:47.4]}
18. Bxd7 {[%clk 0:03:54.4]} 18... Kf7 {[%clk 0:02:44]} 19. Qf4+ {[%clk
0:03:51.5]} 1-0

[Event "Live Chess"]
[Site "Chess.com"]
[Date "2023.05.20"]
[Round "-"]
[White "amazinggoalkeeper"]
[Black "Chris_pea"]
[Result "1-0"]
[WhiteElo "499"]
[BlackElo "590"]
[TimeControl "300"]
[EndTime "9:17:33 PDT"]
[Termination "amazinggoalkeeper won on time"]

1. e4 {[%clk 0:04:59]} 1... c6 {[%clk 0:04:58.7]} 2. d4 {[%clk 0:04:57.3]} 2...
d5 {[%clk 0:04:57.5]} 3. e5 {[%clk 0:04:55.1]} 3... Bf5 {[%clk 0:04:54.4]} 4.
Nf3 {[%clk 0:04:54]} 4... e6 {[%clk 0:04:52]} 5. Bf4 {[%clk 0:04:53.9]} 5... c5
{[%clk 0:04:42.1]} 6. dxc5 {[%clk 0:04:51.4]} 6... Bxc5 {[%clk 0:04:38.2]} 7.
Bb5+ {[%clk 0:04:50.9]} 7... Nc6 {[%clk 0:04:29.6]} 8. Bxc6+ {[%clk 0:04:47.6]}
8... bxc6 {[%clk 0:04:27.3]} 9. O-O {[%clk 0:04:29.8]} 9... Ne7 {[%clk
0:03:52.2]} 10. Nc3 {[%clk 0:04:25.9]} 10... O-O {[%clk 0:03:47.3]} 11. Na4
{[%clk 0:04:18]} 11... Bb6 {[%clk 0:03:40.1]} 12. Nxb6 {[%clk 0:04:15.8]} 12...
axb6 {[%clk 0:03:37.9]} 13. Nd4 {[%clk 0:04:09.5]} 13... f6 {[%clk 0:03:08.5]}
14. exf6 {[%clk 0:04:03.9]} 14... Rxf6 {[%clk 0:03:05.5]} 15. Be5 {[%clk
0:04:02]} 15... Rg6 {[%clk 0:02:57.5]} 16. g3 {[%clk 0:03:59.3]} 16... Qc8
{[%clk 0:02:21.6]} 17. Bd6 {[%clk 0:03:45.6]} 17... c5 {[%clk 0:02:04.4]} 18.
Bxe7 {[%clk 0:03:39.5]} 18... cxd4 {[%clk 0:01:59.8]} 19. Qxd4 {[%clk
0:03:36.6]} 19... Qc4 {[%clk 0:01:44.9]} 20. Qxb6 {[%clk 0:03:34.7]} 20... Bxc2
{[%clk 0:01:15.8]} 21. Qb4 {[%clk 0:03:27.2]} 21... Qxb4 {[%clk 0:01:09.1]} 22.
Bxb4 {[%clk 0:03:27.1]} 22... Rb8 {[%clk 0:01:07.8]} 23. Bd6 {[%clk 0:03:25.9]}
23... Rxb2 {[%clk 0:01:03.6]} 24. Rfc1 {[%clk 0:03:24.2]} 24... Rf6 {[%clk
0:00:46.7]} 25. Be5 {[%clk 0:03:19.7]} 25... Rf7 {[%clk 0:00:44.7]} 26. Bxb2
{[%clk 0:03:18.3]} 26... Bg6 {[%clk 0:00:29.1]} 27. Rc8+ {[%clk 0:03:16.8]}
27... Rf8 {[%clk 0:00:27.8]} 28. Rxf8+ {[%clk 0:03:15.5]} 28... Kxf8 {[%clk
0:00:27]} 29. Rc1 {[%clk 0:03:13.4]} 29... Kf7 {[%clk 0:00:25.3]} 30. Rc7+
{[%clk 0:03:07.9]} 30... Ke8 {[%clk 0:00:20.2]} 31. Rxg7 {[%clk 0:03:00.8]}
31... Kf8 {[%clk 0:00:16.9]} 32. h4 {[%clk 0:02:54.8]} 32... h5 {[%clk 0:00:08]}
33. a4 {[%clk 0:02:54.7]} 1-0

[Event "Live Chess"]
[Site "Chess.com"]
[Date "2023.05.20"]
[Round "-"]
[White "Balu13"]
[Black "Krishtwist2013gmailc"]
[Result "1-0"]
[WhiteElo "832"]
[BlackElo "860"]
[TimeControl "300"]
[EndTime "9:17:33 PDT"]
[Termination "Balu13 won by resignation"]

1. e4 {[%clk 0:04:59.5]} 1... e5 {[%clk 0:04:58.6]} 2. f4 {[%clk 0:04:58.3]}
2... Nc6 {[%clk 0:04:52.7]} 3. Nf3 {[%clk 0:04:56.4]} 3... g6 {[%clk 0:04:51.5]}
4. fxe5 {[%clk 0:04:54.2]} 4... f5 {[%clk 0:04:49.4]} 5. d3 {[%clk 0:04:31.3]}
5... fxe4 {[%clk 0:04:47.7]} 6. Bg5 {[%clk 0:04:20.4]} 6... Be7 {[%clk
0:04:43.2]} 7. Bxe7 {[%clk 0:04:15.6]} 7... Qxe7 {[%clk 0:04:42]} 8. dxe4 {[%clk
0:04:14.6]} 8... Nh6 {[%clk 0:04:37.1]} 9. Bc4 {[%clk 0:04:11.1]} 9... d6 {[%clk
0:04:34.2]} 10. O-O {[%clk 0:04:09.3]} 10... dxe5 {[%clk 0:04:31.6]} 11. h3
{[%clk 0:03:35.5]} 11... Qc5+ {[%clk 0:04:28.2]} 12. Kh1 {[%clk 0:03:33.4]}
12... Qxc4 {[%clk 0:04:24.6]} 13. Nfd2 {[%clk 0:03:20.1]} 13... Qe6 {[%clk
0:04:15.1]} 14. Qf3 {[%clk 0:03:17.6]} 14... Qe7 {[%clk 0:04:03.4]} 15. Nc3
{[%clk 0:03:14.1]} 15... Rf8 {[%clk 0:04:02]} 16. Qe3 {[%clk 0:03:08]} 16... Ng8
{[%clk 0:03:53.9]} 17. Rxf8+ {[%clk 0:03:01.4]} 17... Qxf8 {[%clk 0:03:51.9]}
18. Rf1 {[%clk 0:03:01.3]} 18... Qe7 {[%clk 0:03:47.2]} 19. Nd5 {[%clk
0:02:57.3]} 19... Qd7 {[%clk 0:03:41.5]} 20. Nf6+ {[%clk 0:02:54.8]} 20... Ke7
{[%clk 0:03:39.9]} 21. Nxd7 {[%clk 0:02:53.3]} 21... Kxd7 {[%clk 0:03:37.9]} 22.
Qc5 {[%clk 0:02:37.4]} 22... b6 {[%clk 0:03:31.4]} 23. Rf7+ {[%clk 0:02:25.6]}
23... Kd8 {[%clk 0:03:30.5]} 24. Qxc6 {[%clk 0:02:19.2]} 24... Rb8 {[%clk
0:03:23.3]} 25. Qxc7+ {[%clk 0:02:13.4]} 25... Ke8 {[%clk 0:03:20]} 1-0

[Event "Live Chess"]
[Site "Chess.com"]
[Date "2023.05.20"]
[Round "-"]
[White "Hacker_2009"]
[Black "FlyingChessKestrel13"]
[Result "0-1"]
[WhiteElo "1928"]
[BlackElo "2154"]
[TimeControl "300"]
[EndTime "9:17:38 PDT"]
[Termination "FlyingChessKestrel13 won by resignation"]

1. d4 {[%clk 0:04:57.6]} 1... d5 {[%clk 0:04:58.5]} 2. Nf3 {[%clk 0:04:55.7]}
2... Nf6 {[%clk 0:04:57.1]} 3. e3 {[%clk 0:04:55.4]} 3... Bf5 {[%clk 0:04:55.6]}
4. c4 {[%clk 0:04:55.3]} 4... c6 {[%clk 0:04:53.9]} 5. Nc3 {[%clk 0:04:53.9]}
5... e6 {[%clk 0:04:52.8]} 6. Be2 {[%clk 0:04:52.7]} 6... a6 {[%clk 0:04:52]} 7.
O-O {[%clk 0:04:52.2]} 7... Bd6 {[%clk 0:04:50.6]} 8. b3 {[%clk 0:04:51.9]} 8...
O-O {[%clk 0:04:49.7]} 9. Bb2 {[%clk 0:04:51.5]} 9... Nbd7 {[%clk 0:04:48.8]}
10. Rc1 {[%clk 0:04:51.1]} 10... Re8 {[%clk 0:04:44.4]} 11. Na4 {[%clk
0:04:43.1]} 11... b5 {[%clk 0:04:40]} 12. cxb5 {[%clk 0:04:39.2]} 12... axb5
{[%clk 0:04:38.8]} 13. Nc5 {[%clk 0:04:37.7]} 13... Nxc5 {[%clk 0:04:37.5]} 14.
dxc5 {[%clk 0:04:36.3]} 14... Bc7 {[%clk 0:04:35.1]} 15. a3 {[%clk 0:04:35.1]}
15... e5 {[%clk 0:04:32.9]} 16. b4 {[%clk 0:04:33.1]} 16... e4 {[%clk
0:04:11.2]} 17. Nd4 {[%clk 0:04:31.1]} 17... Bd7 {[%clk 0:04:07.9]} 18. Qc2
{[%clk 0:04:25.8]} 18... Qe7 {[%clk 0:04:05.6]} 19. Rfd1 {[%clk 0:04:24.4]}
19... Ng4 {[%clk 0:03:58.8]} 20. h3 {[%clk 0:04:13]} 20... Ne5 {[%clk
0:03:37.4]} 21. Ra1 {[%clk 0:04:00.2]} 21... Ra4 {[%clk 0:03:33.4]} 22. Qc3
{[%clk 0:03:44.4]} 22... f6 {[%clk 0:03:30.2]} 23. Rdc1 {[%clk 0:03:30]} 23...
Nc4 {[%clk 0:03:28.6]} 24. Bxc4 {[%clk 0:03:27]} 24... dxc4 {[%clk 0:03:27.8]}
25. Rd1 {[%clk 0:03:24.3]} 25... Be5 {[%clk 0:03:26.4]} 26. Qc2 {[%clk
0:03:15.3]} 26... Rea8 {[%clk 0:03:23.9]} 27. Ne2 {[%clk 0:03:12.2]} 27... Bxb2
{[%clk 0:03:21.7]} 28. Qxb2 {[%clk 0:03:09.2]} 28... Be6 {[%clk 0:03:18.5]} 29.
Nc3 {[%clk 0:03:06.3]} 29... R4a6 {[%clk 0:03:13.2]} 30. Rd4 {[%clk 0:02:58.8]}
30... f5 {[%clk 0:03:10]} 31. Ne2 {[%clk 0:02:47.7]} 31... Qa7 {[%clk
0:03:00.9]} 32. Rd6 {[%clk 0:02:44.6]} 32... Bd5 {[%clk 0:03:00.1]} 33. Nf4
{[%clk 0:02:40.8]} 33... Rxa3 {[%clk 0:02:59]} 34. Rxa3 {[%clk 0:02:39]} 34...
Qxa3 {[%clk 0:02:57.9]} 35. Qxa3 {[%clk 0:02:38.4]} 35... Rxa3 {[%clk
0:02:56.8]} 36. Nxd5 {[%clk 0:02:37.8]} 36... cxd5 {[%clk 0:02:56.1]} 37. Rxd5
{[%clk 0:02:33.1]} 37... Ra1+ {[%clk 0:02:54]} 38. Kh2 {[%clk 0:02:26.3]} 38...
c3 {[%clk 0:02:53.5]} 39. c6 {[%clk 0:02:25.4]} 39... c2 {[%clk 0:02:49.6]} 40.
c7 {[%clk 0:02:15.7]} 40... c1=Q {[%clk 0:02:48.1]} 41. Rc5 {[%clk 0:02:15.1]}
41... Qg1+ {[%clk 0:02:41.9]} 42. Kg3 {[%clk 0:02:13.5]} 42... Ra8 {[%clk
0:02:41.3]} 43. c8=Q+ {[%clk 0:02:10.7]} 43... Rxc8 {[%clk 0:02:40.2]} 44. Rxc8+
{[%clk 0:02:10.1]} 44... Kf7 {[%clk 0:02:39.6]} 45. Rc5 {[%clk 0:02:09.8]} 45...
Qf1 {[%clk 0:02:38]} 46. Rxf5+ {[%clk 0:02:07.6]} 46... Ke6 {[%clk 0:02:36.1]}
47. Rf4 {[%clk 0:02:04.2]} 47... Qd3 {[%clk 0:02:30.8]} 48. Rg4 {[%clk
0:02:01.7]} 48... g6 {[%clk 0:02:29.6]} 49. Rh4 {[%clk 0:01:57.3]} 49... h5
{[%clk 0:02:26.6]} 50. Rf4 {[%clk 0:01:53.1]} 50... Qd6 {[%clk 0:02:25.3]} 51.
Kh4 {[%clk 0:01:52.3]} 51... Qe5 {[%clk 0:02:20.8]} 52. Rf8 {[%clk 0:01:38.1]}
52... Ke7 {[%clk 0:02:13.2]} 53. Ra8 {[%clk 0:01:27.7]} 53... Qf6+ {[%clk
0:02:09.3]} 54. Kg3 {[%clk 0:01:24.5]} 54... h4+ {[%clk 0:02:08.6]} 55. Kh2
{[%clk 0:01:14.7]} 55... Qxf2 {[%clk 0:02:07]} 56. Rg8 {[%clk 0:01:09]} 56...
Qg3+ {[%clk 0:02:04.1]} 57. Kh1 {[%clk 0:01:06.3]} 57... Qe1+ {[%clk 0:02:01.3]}
58. Kh2 {[%clk 0:01:05.1]} 58... Qxe3 {[%clk 0:01:57]} 59. Rxg6 {[%clk
0:01:03.4]} 59... Qf4+ {[%clk 0:01:51]} 60. Kg1 {[%clk 0:01:00.6]} 60... e3
{[%clk 0:01:50.2]} 61. Rg4 {[%clk 0:00:58.4]} 61... Qf2+ {[%clk 0:01:48.5]} 0-1

[Event "Live Chess"]
[Site "Chess.com"]
[Date "2023.05.20"]
[Round "-"]
[White "smoggyrabbit"]
[Black "Ocelot32"]
[Result "1-0"]
[WhiteElo "1647"]
[BlackElo "1357"]
[TimeControl "300"]
[EndTime "9:17:45 PDT"]
[Termination "smoggyrabbit won by resignation"]

1. d4 {[%clk 0:04:59.4]} 1... d5 {[%clk 0:04:57.1]} 2. Nf3 {[%clk 0:04:58.4]}
2... Nf6 {[%clk 0:04:53.7]} 3. e3 {[%clk 0:04:57.1]} 3... Bf5 {[%clk 0:04:51.6]}
4. Nh4 {[%clk 0:04:46.6]} 4... Bg6 {[%clk 0:04:46.7]} 5. Nxg6 {[%clk 0:04:45.1]}
5... hxg6 {[%clk 0:04:45.8]} 6. g3 {[%clk 0:04:37.5]} 6... e6 {[%clk 0:04:44.3]}
7. Bg2 {[%clk 0:04:36.7]} 7... Nbd7 {[%clk 0:04:42.1]} 8. c4 {[%clk 0:04:24.6]}
8... c6 {[%clk 0:04:40.2]} 9. Nd2 {[%clk 0:04:18.7]} 9... Bb4 {[%clk 0:04:24.4]}
10. Qb3 {[%clk 0:04:05.3]} 10... Bxd2+ {[%clk 0:04:21.2]} 11. Bxd2 {[%clk
0:04:04.1]} 11... Rb8 {[%clk 0:04:20.8]} 12. O-O {[%clk 0:03:42]} 12... Ng4
{[%clk 0:04:14.2]} 13. h3 {[%clk 0:03:40.8]} 13... Ngf6 {[%clk 0:04:11.3]} 14.
Rfe1 {[%clk 0:03:27.6]} 14... Ne4 {[%clk 0:04:09.8]} 15. cxd5 {[%clk 0:03:18.3]}
15... Nxd2 {[%clk 0:04:06.7]} 16. Qc2 {[%clk 0:03:11]} 16... Nf3+ {[%clk
0:03:44.1]} 17. Bxf3 {[%clk 0:03:07.1]} 17... Rxh3 {[%clk 0:03:43.1]} 18. dxe6
{[%clk 0:03:00.3]} 18... fxe6 {[%clk 0:03:23.9]} 19. Qxg6+ {[%clk 0:02:58.1]}
19... Kf8 {[%clk 0:03:20.8]} 20. Qxe6 {[%clk 0:02:42.4]} 20... Nf6 {[%clk
0:03:05.2]} 21. Qxh3 {[%clk 0:02:31.2]} 1-0

[Event "Live Chess"]
[Site "Chess.com"]
[Date "2023.05.20"]
[Round "-"]
[White "DenDenTie"]
[Black "JohanKjeldahl"]
[Result "0-1"]
[WhiteElo "925"]
[BlackElo "1786"]
[TimeControl "300"]
[EndTime "9:17:46 PDT"]
[Termination "JohanKjeldahl won by resignation"]

1. e4 {[%clk 0:04:40.6]} 1... c5 {[%clk 0:04:58.4]} 2. Nf3 {[%clk 0:04:39.3]}
2... e6 {[%clk 0:04:56.6]} 3. d4 {[%clk 0:04:35.6]} 3... cxd4 {[%clk 0:04:55]}
4. Nxd4 {[%clk 0:04:34]} 4... Nc6 {[%clk 0:04:54.1]} 5. Nc3 {[%clk 0:04:30.9]}
5... Qc7 {[%clk 0:04:51.4]} 6. Bc4 {[%clk 0:04:21]} 6... a6 {[%clk 0:04:49.1]}
7. O-O {[%clk 0:04:11.9]} 7... Nf6 {[%clk 0:04:45.9]} 8. Bg5 {[%clk 0:04:04.7]}
8... b5 {[%clk 0:04:41.2]} 9. Bb3 {[%clk 0:03:45.8]} 9... Bb7 {[%clk 0:04:38.9]}
10. Bxf6 {[%clk 0:03:42.2]} 10... gxf6 {[%clk 0:04:37.3]} 11. Nxc6 {[%clk
0:03:40.8]} 11... Bxc6 {[%clk 0:04:33.3]} 12. a4 {[%clk 0:03:24.3]} 12... b4
{[%clk 0:04:30.9]} 13. Ne2 {[%clk 0:03:12.9]} 13... Bd6 {[%clk 0:04:29.4]} 14.
Ng3 {[%clk 0:02:58.5]} 14... h5 {[%clk 0:04:27.5]} 15. Re1 {[%clk 0:02:51]}
15... O-O-O {[%clk 0:04:23.3]} 16. Qd3 {[%clk 0:02:04.5]} 16... h4 {[%clk
0:04:21.3]} 17. Qxa6+ {[%clk 0:01:59.1]} 17... Bb7 {[%clk 0:04:20.4]} 18. Qd3
{[%clk 0:01:31.9]} 18... hxg3 {[%clk 0:04:18.7]} 19. h3 {[%clk 0:01:28.4]} 19...
gxf2+ {[%clk 0:04:15.9]} 20. Kxf2 {[%clk 0:01:26.5]} 20... Rdg8 {[%clk 0:04:10]}
21. Rec1 {[%clk 0:01:14]} 21... Bg3+ {[%clk 0:04:03.9]} 22. Ke2 {[%clk
0:00:59.6]} 22... Bf4 {[%clk 0:03:56.6]} 23. c3 {[%clk 0:00:47.6]} 23... Rxg2+
{[%clk 0:03:53.1]} 24. Kf1 {[%clk 0:00:41.9]} 24... Rg3 {[%clk 0:03:39.9]} 25.
Qxg3 {[%clk 0:00:14]} 25... Bxg3 {[%clk 0:03:34.8]} 26. cxb4 {[%clk 0:00:13.1]}
26... Rxh3 {[%clk 0:03:24.3]} 27. Rxc7+ {[%clk 0:00:11.6]} 27... Kxc7 {[%clk
0:03:23.4]} 28. Rc1+ {[%clk 0:00:10.5]} 28... Kd6 {[%clk 0:03:20.7]} 29. a5
{[%clk 0:00:08.4]} 29... Bxe4 {[%clk 0:03:17.8]} 30. b5 {[%clk 0:00:07.1]} 30...
Rh1+ {[%clk 0:03:14.7]} 31. Ke2 {[%clk 0:00:06.2]} 31... Rxc1 {[%clk 0:03:12.7]}
0-1

[Event "Live Chess"]
[Site "Chess.com"]
[Date "2023.05.20"]
[Round "-"]
[White "daveeeeR"]
[Black "Brooms1989"]
[Result "0-1"]
[WhiteElo "1254"]
[BlackElo "942"]
[TimeControl "300"]
[EndTime "9:17:47 PDT"]
[Termination "Brooms1989 won by checkmate"]

1. d4 {[%clk 0:04:59.2]} 1... Nf6 {[%clk 0:04:55.4]} 2. Bf4 {[%clk 0:04:59.1]}
2... g6 {[%clk 0:04:52.4]} 3. Nf3 {[%clk 0:04:59]} 3... e5 {[%clk 0:04:48.5]} 4.
dxe5 {[%clk 0:04:57.3]} 4... Ng8 {[%clk 0:04:47.4]} 5. c3 {[%clk 0:04:47.3]}
5... Nc6 {[%clk 0:04:46.4]} 6. Nbd2 {[%clk 0:04:41.2]} 6... Bg7 {[%clk
0:04:42.5]} 7. Nc4 {[%clk 0:04:38.1]} 7... Nge7 {[%clk 0:04:38.6]} 8. e4 {[%clk
0:04:35.4]} 8... O-O {[%clk 0:04:35.6]} 9. Bd3 {[%clk 0:04:32.6]} 9... f6 {[%clk
0:04:15.7]} 10. exf6 {[%clk 0:04:27.5]} 10... Rxf6 {[%clk 0:04:15.6]} 11. Be5
{[%clk 0:04:22.7]} 11... Nxe5 {[%clk 0:04:12.7]} 12. Ncxe5 {[%clk 0:04:17.9]}
12... d6 {[%clk 0:04:07.5]} 13. Ng4 {[%clk 0:04:15.8]} 13... Bxg4 {[%clk
0:03:58.1]} 14. Be2 {[%clk 0:04:09.6]} 14... Bxf3 {[%clk 0:03:55.3]} 15. Bxf3
{[%clk 0:04:08.2]} 15... Nc6 {[%clk 0:03:48.8]} 16. Qd5+ {[%clk 0:04:03.2]}
16... Kh8 {[%clk 0:03:42.9]} 17. O-O {[%clk 0:03:59.7]} 17... Qe7 {[%clk
0:03:27.2]} 18. Rfe1 {[%clk 0:03:56]} 18... Qe5 {[%clk 0:03:22.9]} 19. Qb3
{[%clk 0:03:53.2]} 19... b6 {[%clk 0:03:09.6]} 20. Rad1 {[%clk 0:03:44.1]} 20...
Qg5 {[%clk 0:03:05.3]} 21. Re3 {[%clk 0:03:30.9]} 21... Ne5 {[%clk 0:02:41]} 22.
c4 {[%clk 0:03:23]} 22... Nxf3+ {[%clk 0:02:36.7]} 23. Rxf3 {[%clk 0:03:21.3]}
23... Rxf3 {[%clk 0:02:34.4]} 24. Qxf3 {[%clk 0:03:20.3]} 24... Rf8 {[%clk
0:02:33.8]} 25. Qh3 {[%clk 0:03:08.8]} 25... Qf4 {[%clk 0:02:15.3]} 26. Rf1
{[%clk 0:03:02.1]} 26... Bxb2 {[%clk 0:02:08.9]} 27. Qb3 {[%clk 0:02:51.7]}
27... Be5 {[%clk 0:02:03]} 28. g3 {[%clk 0:02:46.3]} 28... Qxe4 {[%clk
0:01:48.6]} 29. Qb5 {[%clk 0:02:36]} 29... Bd4 {[%clk 0:01:43]} 30. Qd7 {[%clk
0:02:32.4]} 30... Qe2 {[%clk 0:01:15.9]} 31. Qh3 {[%clk 0:02:19.7]} 31... Bxf2+
{[%clk 0:01:13.5]} 32. Kh1 {[%clk 0:02:17]} 32... Qxc4 {[%clk 0:00:56]} 33. Qg2
{[%clk 0:02:11.5]} 33... Qf7 {[%clk 0:00:43.2]} 34. g4 {[%clk 0:02:05.7]} 34...
Qf3 {[%clk 0:00:38.2]} 35. h3 {[%clk 0:02:03.9]} 35... Qxg2+ {[%clk 0:00:36.6]}
36. Kxg2 {[%clk 0:02:03.1]} 36... Kg7 {[%clk 0:00:30.3]} 37. Rxf2 {[%clk
0:02:01.2]} 37... Rxf2+ {[%clk 0:00:30.1]} 38. Kxf2 {[%clk 0:02:00.5]} 38... Kf6
{[%clk 0:00:30]} 39. Ke3 {[%clk 0:01:59.7]} 39... Ke5 {[%clk 0:00:29.2]} 40. a4
{[%clk 0:01:56.5]} 40... c5 {[%clk 0:00:28.6]} 41. h4 {[%clk 0:01:52.2]} 41...
d5 {[%clk 0:00:27.5]} 42. g5 {[%clk 0:01:51.3]} 42... c4 {[%clk 0:00:26.3]} 43.
Kd2 {[%clk 0:01:42.2]} 43... d4 {[%clk 0:00:25.6]} 44. Kc2 {[%clk 0:01:40.3]}
44... Ke4 {[%clk 0:00:25]} 45. Kd2 {[%clk 0:01:39.2]} 45... c3+ {[%clk
0:00:23.8]} 46. Kc2 {[%clk 0:01:37.1]} 46... Ke3 {[%clk 0:00:23.1]} 47. Kd1
{[%clk 0:01:35.4]} 47... d3 {[%clk 0:00:21]} 48. Kc1 {[%clk 0:01:33]} 48... Ke2
{[%clk 0:00:19.7]} 49. h5 {[%clk 0:01:27.3]} 49... gxh5 {[%clk 0:00:19.6]} 50.
g6 {[%clk 0:01:26]} 50... hxg6 {[%clk 0:00:18.9]} 51. a5 {[%clk 0:01:25.3]}
51... bxa5 {[%clk 0:00:17.5]} 52. Kb1 {[%clk 0:01:24.3]} 52... d2 {[%clk
0:00:16.6]} 53. Kc2 {[%clk 0:01:21.8]} 53... d1=Q+ {[%clk 0:00:14.9]} 54. Kxc3
{[%clk 0:01:21.7]} 54... Qd3+ {[%clk 0:00:13.5]} 55. Kb2 {[%clk 0:01:17.8]}
55... Qc4 {[%clk 0:00:12.3]} 56. Ka3 {[%clk 0:01:15.7]} 56... Qb5 {[%clk
0:00:10.3]} 57. Ka2 {[%clk 0:01:13.6]} 57... Kd2 {[%clk 0:00:10.2]} 58. Ka3
{[%clk 0:01:12.2]} 58... Kc3 {[%clk 0:00:09.7]} 59. Ka2 {[%clk 0:01:11.1]} 59...
Qb2# {[%clk 0:00:08.9]} 0-1